fUST/lending_fUST_20241204
["ID","MTS","AMOUNT","RATE_DAILY","PERIOD"]
[344057310,1733255164646,-500.0,0.00030974,7]
[344057311,1733255164667,-500.0,0.00030974,7]
[344057312,1733255164688,-500.0,0.00030974,7]
[344057313,1733255164710,-500.0,0.00030974,7]
[344057314,1733255164733,-500.0,0.00030974,7]
[344057315,1733255164757,-500.0,0.00030974,7]
[344057316,1733255164779,-520.56,0.00030974,7]
[344057317,1733255164801,-500.0,0.00030974,7]
[344057318,1733255164824,-500.0,0.00030974,7]
[344057319,1733255164848,-500.0,0.00030974,7]
[344057320,1733255164870,-500.0,0.00030974,7]
[344057321,1733255164891,-500.0,0.00030974,7]
[344057322,1733255164912,-500.0,0.00030974,7]
[344057323,1733255164934,-72.77070152,0.00030974,7]
[344057324,1733255187699,164.531853,0.00013973,2]
[344057326,1733255225094,-1169.27083333,0.0002,2]
[344057327,1733255225115,-2579.2848642,0.00029575,2]
[344057328,1733255225136,-400.0,0.00030135,2]
[344057329,1733255225157,-500.0,0.00030136,7]
[344057330,1733255225178,-500.0,0.00030136,7]
[344057331,1733255225199,-500.0,0.00030136,7]
[344057332,1733255225220,-1169.27083333,0.00030136,7]
[344057333,1733255225242,-1169.27083333,0.00030136,7]
[344057334,1733255225263,-1169.27083333,0.00030136,7]
[344057335,1733255225283,-168.0,0.00030136,7]
[344057336,1733255225306,-168.0,0.00030136,7]
[344057337,1733255225327,-501.06422104,0.00030136,7]
[344057338,1733255225348,-503.28157394,0.00030136,7]
[344057339,1733255225368,-500.0,0.00030136,7]
[344057340,1733255225391,-500.0,0.00030136,7]
[344057341,1733255225412,-503.48892706,0.00030136,7]
[344057342,1733255225433,-500.0,0.00030136,7]
[344057343,1733255225454,-500.0,0.00030136,7]
[344057344,1733255225475,-345.81886338,0.00030136,7]
[344057345,1733255225496,-624.75,0.00030136,7]
[344057346,1733255225516,-502.03812275,0.00030136,7]
[344057347,1733255225536,-516.11246783,0.00030136,7]
[344057348,1733255225559,-511.94581365,0.00030136,7]
[344057349,1733255225581,-506.41948239,0.00030136,7]
[344057350,1733255225601,-418.46678495,0.00030136,7]
[344057351,1733255225621,-532.0,0.00030497,2]
[344057352,1733255225641,-2171.0,0.00030497,2]
[344057353,1733255225661,-2376.0,0.00030497,2]
[344057354,1733255225682,-6666.0,0.00030902,2]
[344057355,1733255225702,-47876.07967701,0.0003096,2]
[344057356,1733255227141,-31481.51305194,0.0003096,2]
[344057357,1733255233091,-400.0,0.00030135,2]
[344057358,1733255233112,-249.97877524,0.00030136,7]
[344057359,1733255233133,-1904.04469445,0.0003096,2]
[344057360,1733255241117,-604.14184846,0.0003096,2]
[344057362,1733255248091,-1169.27083333,0.00030136,7]
[344057363,1733255248111,-24163.8628705,0.0003096,2]
[344057364,1733255248134,-387.30611244,0.00030974,7]
[344057365,1733255248154,-516.30738873,0.00030974,7]
[344057366,1733255248174,-208.229092,0.00030975,7]
[344057367,1733255248195,-151.0,0.00030975,7]
[344057368,1733255248217,-151.0,0.00030975,7]
[344057369,1733255248238,-151.0,0.00030975,7]
[344057370,1733255248258,-151.0,0.00030975,7]
[344057371,1733255248280,-151.0,0.00030975,7]
[344057372,1733255248300,-151.0,0.00030975,7]
[344057373,1733255248322,-151.0,0.00030975,7]
[344057374,1733255248345,-151.0,0.00030975,7]
[344057375,1733255248366,-151.0,0.00030975,7]
[344057376,1733255248390,-151.0,0.00030975,7]
[344057377,1733255248413,-151.0,0.00030975,7]
[344057378,1733255248435,-151.0,0.00030975,7]
[344057379,1733255248462,-151.0,0.00030975,7]
[344057380,1733255248491,-151.0,0.00030975,7]
[344057381,1733255248513,-151.0,0.00030975,7]
[344057382,1733255248535,-151.0,0.00030975,7]
[344057383,1733255248558,-151.0,0.00030975,7]
[344057384,1733255248581,-195.01207,0.00030975,7]
[344057385,1733255248604,-151.0,0.00030975,7]
[344057386,1733255248625,-151.0,0.00030975,7]
[344057387,1733255248646,-151.0,0.00030975,7]
[344057388,1733255248667,-151.0,0.00030975,7]
[344057389,1733255248689,-151.0,0.00030975,7]
[344057390,1733255248710,-151.0,0.00030975,7]
[344057391,1733255248730,-151.0,0.00030975,7]
[344057392,1733255248752,-151.0,0.00030975,7]
[344057393,1733255248773,-151.0,0.00030975,7]
[344057394,1733255248793,-151.0,0.00030975,7]
[344057395,1733255248815,-151.0,0.00030975,7]
[344057396,1733255248838,-151.0,0.00030975,7]
[344057397,1733255248859,-151.0,0.00030975,7]
[344057398,1733255248880,-151.0,0.00030975,7]
[344057399,1733255248902,-151.0,0.00030975,7]
[344057400,1733255248922,-171.0396,0.00030975,7]
[344057401,1733255248945,-500.0,0.00030978,7]
[344057402,1733255248968,-500.0,0.00030978,7]
[344057403,1733255248992,-500.0,0.00030979,7]
[344057404,1733255249014,-500.0,0.00030979,7]
[344057405,1733255249035,-500.0,0.00030979,7]
[344057406,1733255249059,-500.0,0.00030979,7]
[344057407,1733255249084,-500.0,0.00030979,7]
[344057408,1733255249107,-500.0,0.00030979,7]
[344057409,1733255249129,-337.97,0.00030979,7]
[344057410,1733255249151,-1169.27083333,0.00030979,7]
[344057411,1733255249171,-151.0,0.0003098,7]
[344057412,1733255249192,-151.0,0.0003098,7]
[344057413,1733255249213,-151.0,0.0003098,7]
[344057414,1733255249233,-151.0,0.0003098,7]
[344057415,1733255249254,-151.0,0.0003098,7]
[344057416,1733255249275,-151.0,0.0003098,7]
[344057417,1733255249295,-151.0,0.0003098,7]
[344057418,1733255249315,-151.0,0.0003098,7]
[344057419,1733255249338,-151.0,0.0003098,7]
[344057420,1733255249359,-151.0,0.0003098,7]
[344057421,1733255249381,-151.0,0.0003098,7]
[344057422,1733255249406,-151.0,0.0003098,7]
[344057423,1733255249429,-151.0,0.0003098,7]
[344057424,1733255249450,-293.61964,0.0003098,7]
[344057425,1733255249477,-151.0,0.0003098,7]
[344057426,1733255249499,-151.0,0.0003098,7]
[344057427,1733255249521,-151.0,0.0003098,7]
[344057428,1733255249543,-151.0,0.0003098,7]
[344057429,1733255249565,-151.0,0.0003098,7]
[344057430,1733255249588,-151.0,0.0003098,7]
[344057431,1733255249608,-152.741155,0.0003098,7]
[344057432,1733255249629,-292.3515,0.00030992,2]
[344057433,1733255249650,-669.72,0.00030992,10]
[344057434,1733255249671,-558.1,0.00030992,10]
[344057435,1733255249692,-500.0,0.00030994,7]
[344057436,1733255249712,-500.0,0.00030994,7]
[344057437,1733255249734,-500.0,0.00030994,7]
[344057438,1733255249755,-500.0,0.00030994,7]
[344057439,1733255249776,-505.40452947,0.00030994,7]
[344057440,1733255249797,-500.0,0.00030994,7]
[344057441,1733255249818,-504.43934891,0.00030994,7]
[344057442,1733255249841,-505.05324756,0.00030994,7]
[344057443,1733255249862,-501.71045778,0.00030994,7]
[344057444,1733255249884,-565.55508715,0.00030994,7]
[344057445,1733255249906,-508.41419684,0.00030994,7]
[344057446,1733255249928,-502.98407879,0.00030994,7]
[344057447,1733255250033,-409.11355314,0.00030994,7]
[344057448,1733255250057,-1169.27083333,0.00030994,7]
[344057449,1733255250080,-500.0,0.00030999,7]
[344057450,1733255250104,-506.6003104,0.00030999,7]
[344057451,1733255250125,-482.05351485,0.00030999,7]
[344057452,1733255250147,-500.0,0.00030999,7]
[344057453,1733255250168,-500.0,0.00030999,7]
[344057454,1733255250189,-499.11787745,0.00030999,7]
[344057455,1733255250209,-500.0,0.00030999,7]
[344057456,1733255250230,-500.0,0.00030999,7]
[344057457,1733255250251,-500.0,0.00030999,7]
[344057458,1733255250272,-500.0,0.00030999,7]
[344057459,1733255250293,-533.43760398,0.00030999,7]
[344057460,1733255250313,-500.0,0.00030999,7]
[344057461,1733255250337,-236.62193595,0.00030999,7]
[344057462,1733255250358,-500.0,0.00030999,7]
[344057463,1733255250380,-503.85113335,0.00030999,7]
[344057464,1733255250411,-500.0,0.00030999,7]
[344057465,1733255250445,-205.35497794,0.00030999,7]
[344057466,1733255250481,-8774.66489888,0.00031,14]
[344057467,1733255251109,-1169.27083333,0.0002,2]
[344057468,1733255251133,-465.08,0.00030992,10]
[344057469,1733255251154,-1225.33510112,0.00031,14]
[344057470,1733255251176,-1141.85,0.00031,2]
[344057471,1733255251199,-214.39323159,0.00031002,2]
[344057472,1733255251221,-500.0,0.00031002,2]
[344057473,1733255251242,-413.6403777,0.00031002,2]
[344057474,1733255251267,-500.0,0.00031002,2]
[344057475,1733255251290,-500.0,0.00031002,2]
[344057476,1733255251311,-191.48673005,0.00031002,2]
[344057477,1733255251338,-222.99044045,0.00031002,2]
[344057478,1733255251361,-500.0,0.00031002,2]
[344057479,1733255251389,-296.38590289,0.00031002,2]
[344057480,1733255251412,-550.38,0.00031002,7]
[344057481,1733255251433,-500.52952654,0.00031002,7]
[344057482,1733255251455,-500.0,0.00031002,7]
[344057483,1733255251478,-639.088,0.00031002,7]
[344057484,1733255251499,-500.0,0.00031002,7]
[344057485,1733255251523,-500.0,0.00031002,7]
[344057486,1733255251545,-500.0,0.00031002,7]
[344057487,1733255251567,-500.0,0.00031002,7]
[344057488,1733255251590,-503.48960317,0.00031002,7]
[344057489,1733255251611,-539.96067333,0.00031002,7]
[344057490,1733255251632,-500.0,0.00031002,7]
[344057491,1733255251654,-501.74756336,0.00031002,7]
[344057492,1733255251676,-500.0,0.00031002,7]
[344057493,1733255251697,-500.0,0.00031002,7]
[344057494,1733255251718,-501.89749434,0.00031002,7]
[344057495,1733255251738,-500.80672594,0.00031002,7]
[344057496,1733255251759,-500.0,0.00031002,7]
[344057497,1733255251780,-171.52230487,0.00031002,2]
[344057498,1733255251803,-25608.92324116,0.00031002,2]
[344057499,1733255251824,-433.74319206,0.00031003,7]
[344057500,1733255251846,-433.74319206,0.00031003,7]
[344057501,1733255251875,-236.08579543,0.00031003,7]
[344057502,1733255251896,-431.24177039,0.00031003,7]
[344057503,1733255251918,-500.0,0.00031003,7]
[344057504,1733255251939,-500.0,0.00031003,7]
[344057505,1733255251960,-500.0,0.00031003,7]
[344057506,1733255251981,-500.0,0.00031003,7]
[344057507,1733255252002,-500.0,0.00031003,7]
[344057508,1733255252024,-500.0,0.00031003,7]
[344057509,1733255252046,-498.15508231,0.00031003,7]
[344057510,1733255252067,-500.0,0.00031003,7]
[344057511,1733255252090,-500.0,0.00031003,7]
[344057512,1733255252112,-500.0,0.00031003,7]
[344057513,1733255252133,-500.78699268,0.00031003,7]
[344057514,1733255252155,-151.0,0.00031003,7]
[344057515,1733255252181,-269.554244,0.00031003,7]
[344057516,1733255252204,-151.0,0.00031003,7]
[344057517,1733255252226,-151.0,0.00031003,7]
[344057518,1733255252249,-151.0,0.00031003,7]
[344057519,1733255252270,-151.0,0.00031003,7]
[344057520,1733255252292,-151.0,0.00031003,7]
[344057521,1733255252313,-151.0,0.00031003,7]
[344057522,1733255252335,-153.799805,0.00031003,7]
[344057523,1733255252357,-501.84404072,0.00031003,7]
[344057524,1733255252378,-4657.79422004,0.00031004,2]
[344057525,1733255252401,-500.0,0.00031004,7]
[344057526,1733255252422,-368.74360861,0.00031004,7]
[344057527,1733255252445,-500.0,0.00031004,7]
[344057528,1733255252467,-500.0,0.00031004,7]
[344057529,1733255252490,-513.18027718,0.00031004,7]
[344057530,1733255252511,-500.0,0.00031004,7]
[344057531,1733255252645,-500.0,0.00031004,7]
[344057532,1733255252668,-289.5999905,0.00031004,7]
[344057533,1733255252688,-118.92667079,0.00031004,7]
[344057534,1733255347106,-436.24384627,0.0002,2]
[344057535,1733255350189,-733.02698706,0.0002,2]
[344057537,1733255408370,1169.27083333,0.0002,2]
[344057599,1733255433012,-380.0,0.00030135,2]
[344057602,1733255433023,-400.0,0.00030135,2]
[344057605,1733255433034,-500.0,0.00030136,7]
[344057607,1733255433043,-503.83550965,0.00030136,7]
[344057609,1733255433053,-500.0,0.00030136,7]
[344057611,1733255433063,-500.0,0.00030136,7]
[344057613,1733255433073,-500.0,0.00030136,7]
[344057615,1733255433082,-1169.27083333,0.00030136,7]
[344057617,1733255433093,-500.0,0.00030136,7]
[344057619,1733255433103,-192.87,0.000303,31]
[344057621,1733255433112,-192.87,0.000303,31]
[344057623,1733255433122,-192.87,0.000303,31]
[344057626,1733255433132,-192.87,0.000303,31]
[344057627,1733255433142,-192.87,0.000303,31]
[344057630,1733255433151,-192.87,0.000303,31]
[344057632,1733255433161,-192.87,0.000303,31]
[344057634,1733255433171,-192.87,0.000303,31]
[344057635,1733255433180,-192.87,0.000303,31]
[344057637,1733255433190,-192.87,0.000303,31]
[344057639,1733255433199,-192.87,0.000303,31]
[344057641,1733255433208,-192.87,0.000303,31]
[344057643,1733255433219,-155.1276252,0.00030334,2]
[344057645,1733255433228,-1026.97426866,0.00030409,2]
[344057648,1733255433240,-2619.70273143,0.00030409,2]
[344057676,1733255438826,-3338.07783467,0.00030409,2]
[344057677,1733255439816,-7377.71652012,0.00030409,2]
[344057678,1733255439828,-111.85631535,0.00030409,2]
[344057679,1733255439838,-500.0,0.00030799,7]
[344057680,1733255439847,-6449.21161278,0.00030901,2]
[344057681,1733255439857,-500.0,0.00030963,7]
[344057682,1733255439866,-500.0,0.00030973,7]
[344057683,1733255439875,-500.0,0.00030974,7]
[344057684,1733255439885,-500.0,0.00030974,7]
[344057685,1733255439894,-500.0,0.00030974,7]
[344057686,1733255439904,-500.0,0.00030974,7]
[344057687,1733255439914,-500.0,0.00030974,7]
[344057688,1733255439926,-500.0,0.00030974,7]
[344057689,1733255439935,-500.0,0.00030974,7]
[344057690,1733255439945,-500.0,0.00030974,7]
[344057691,1733255439955,-500.0,0.00030974,7]
[344057692,1733255439964,-500.0,0.00030974,7]
[344057693,1733255439979,-500.0,0.00030974,7]
[344057694,1733255439989,-500.0,0.00030974,7]
[344057695,1733255439998,-500.0,0.00030974,7]
[344057696,1733255440008,-321.95411384,0.00030974,7]
[344057697,1733255440018,-1169.27083333,0.00030979,7]
[344057698,1733255440028,-156.57,0.00030991,3]
[344057699,1733255440038,-469.71,0.00030991,3]
[344057700,1733255440047,-387.57,0.00030991,10]
[344057701,1733255440058,-322.97,0.00030991,10]
[344057702,1733255440067,-269.14,0.00030991,10]
[344057703,1733255440076,-518.41898531,0.00030994,7]
[344057705,1733255442501,-650.85184802,0.00030994,7]
[344057706,1733255442512,-1027.66,0.00031,2]
[344057707,1733255442522,-639.54826438,0.00031,2]
[344057708,1733255442531,-12804.46162058,0.00031001,2]
[344057709,1733255442542,-160.37935334,0.00031001,10]
[344057710,1733255442974,-5427.28535156,0.00031001,10]
[344057738,1733255443616,-6591.44184796,0.00031001,10]
[344057789,1733255444644,-8797.47021615,0.00031001,10]
[344057790,1733255444655,-38691.72095811,0.00031001,10]
[344057791,1733255444667,-2033.66840157,0.00031001,10]
[344057798,1733255446538,-238.0,0.0003,2]
[344057799,1733255446548,-224.29,0.00030991,10]
[344057800,1733255446558,-178.05951854,0.00031001,10]
[344057801,1733255446645,-4104.2054,0.00031001,10]
[344057802,1733255446758,-4744.09005746,0.00031001,10]
[344057807,1733255446801,-792.90134478,0.00031001,10]
[344057823,1733255834695,162.741751,0.00013973,2]
[344057830,1733256547220,-382.79613746,0.0002,2]
[344057831,1733256547240,-4570.34833418,0.00021191,2]
[344057832,1733256547261,-150.0,0.000273,2]
[344057833,1733256547281,-201.4937251,0.00027587,2]
[344057834,1733256547301,-271.15637,0.00027646,2]
[344057835,1733256547321,-1255.0,0.00027704,2]
[344057836,1733256547342,-9268.5024225,0.00027706,2]
[344057837,1733256547362,-2506.110714,0.00027736,2]
[344057838,1733256547381,-1999.014775,0.00027793,11]
[344057839,1733256557173,-172.248201,0.00028066,2]
[344057840,1733256569187,947.36467538,0.00025365,2]
[344057858,1733256632818,-157.672136,0.00029947,2]
[344057860,1733256632830,-208.0,0.0003,2]
[344057862,1733256632842,-162.74,0.00030036,24]
[344057864,1733256632853,-660.49677428,0.00030036,2]
[344057866,1733256632864,-500.0,0.00030135,2]
[344057868,1733256632875,-400.0,0.00030135,2]
[344057871,1733256632887,-500.0,0.00030136,7]
[344057875,1733256632899,-170.63204244,0.00030136,7]
[344057951,1733256638692,-329.36795756,0.00030136,7]
[344057953,1733256638705,-500.0,0.00030136,7]
[344057956,1733256638720,-500.0,0.00030136,7]
[344057958,1733256638732,-500.0,0.00030136,7]
[344057960,1733256638744,-500.0,0.00030136,7]
[344057962,1733256638754,-232.35887738,0.00030136,7]
[344057964,1733256638765,-505.33225486,0.00030136,7]
[344057966,1733256638777,-500.0,0.00030136,7]
[344057969,1733256638788,-230.28,0.00030136,7]
[344057971,1733256638801,-504.14812093,0.00030136,7]
[344057973,1733256638811,-504.31357439,0.00030136,7]
[344057975,1733256638822,-500.0,0.00030136,7]
[344057977,1733256638834,-500.0,0.00030136,7]
[344057979,1733256638844,-500.6,0.00030136,7]
[344057982,1733256638856,-500.0,0.00030136,7]
[344057984,1733256638869,-500.0,0.00030136,7]
[344057986,1733256638881,-242.84425141,0.00030136,7]
[344057988,1733256638892,-371.46304803,0.00030136,7]
[344057990,1733256638903,-500.0,0.00030136,7]
[344057992,1733256638914,-500.0,0.00030136,7]
[344057994,1733256638925,-500.0,0.00030136,7]
[344057997,1733256638937,-500.0,0.00030136,7]
[344057999,1733256638948,-500.0,0.00030136,7]
[344058001,1733256638961,-500.0,0.00030136,7]
[344058003,1733256638972,-381.07332921,0.00030136,7]
[344058005,1733256638983,-500.0,0.00030136,7]
[344058008,1733256638997,-500.0,0.00030136,7]
[344058010,1733256639008,-500.0,0.00030136,7]
[344058012,1733256639018,-308.27798447,0.00030136,7]
[344058014,1733256639028,-500.0,0.00030136,7]
[344058016,1733256639038,-500.0,0.00030136,7]
[344058018,1733256639048,-500.0,0.00030136,7]
[344058020,1733256639059,-525.50029547,0.00030136,7]
[344058022,1733256639070,-500.0,0.00030136,7]
[344058025,1733256639081,-500.0,0.00030136,7]
[344058027,1733256639092,-500.0,0.00030136,2]
[344058029,1733256639104,-441.84554412,0.00030136,7]
[344058031,1733256639116,-500.0,0.00030136,7]
[344058034,1733256639127,-500.0,0.00030136,7]
[344058036,1733256639139,-500.0,0.00030136,7]
[344058038,1733256639150,-500.0,0.00030136,7]
[344058040,1733256639159,-500.0,0.00030136,7]
[344058042,1733256639170,-500.0,0.00030136,7]
[344058044,1733256639180,-500.0,0.00030136,7]
[344058046,1733256639191,-500.0,0.00030136,7]
[344058049,1733256639202,-555.30793289,0.00030136,7]
[344058051,1733256639213,-500.0,0.00030136,7]
[344058053,1733256639223,-500.0,0.00030136,7]
[344058055,1733256639233,-947.36467538,0.00030136,7]
[344058057,1733256639244,-947.36467538,0.00030136,7]
[344058059,1733256639254,-500.0,0.00030136,7]
[344058061,1733256639264,-500.0,0.00030136,7]
[344058063,1733256639275,-442.76302014,0.00030136,7]
[344058065,1733256639286,-515.54626672,0.00030136,7]
[344058067,1733256639296,-506.74047524,0.00030136,7]
[344058070,1733256639307,-500.0,0.00030136,7]
[344058072,1733256639318,-500.0,0.00030136,7]
[344058074,1733256639328,-500.0,0.00030136,7]
[344058076,1733256639338,-500.0,0.00030136,7]
[344058078,1733256639350,-618.79257849,0.00030136,7]
[344058080,1733256639360,-265.08823347,0.00030136,7]
[344058082,1733256639370,-500.0,0.00030136,7]
[344058085,1733256639383,-500.0,0.00030136,7]
[344058087,1733256639393,-500.0,0.00030136,7]
[344058089,1733256639403,-500.0,0.00030136,7]
[344058091,1733256639414,-500.0,0.00030136,7]
[344058093,1733256639424,-174.12749284,0.00030136,7]
[344058095,1733256639435,-500.0,0.00030136,7]
[344058097,1733256639445,-500.0,0.00030136,7]
[344058100,1733256639456,-660.49677424,0.0003016,2]
[344058114,1733256639575,-660.49677424,0.00030285,2]
[344058116,1733256639591,-169.74,0.000303,31]
[344058118,1733256639600,-169.74,0.000303,31]
[344058120,1733256639610,-169.74,0.000303,31]
[344058122,1733256639619,-169.74,0.000303,31]
[344058124,1733256639628,-169.74,0.000303,31]
[344058126,1733256639638,-169.74,0.000303,31]
[344058128,1733256639647,-169.74,0.000303,31]
[344058130,1733256639657,-169.74,0.000303,31]
[344058132,1733256639666,-169.74,0.000303,31]
[344058135,1733256639676,-169.74,0.000303,31]
[344058137,1733256639686,-169.74,0.000303,31]
[344058139,1733256639695,-169.74,0.000303,31]
[344058141,1733256639706,-206.31065344,0.00030409,7]
[344058143,1733256639720,-660.49677424,0.00030409,2]
[344058144,1733256639730,-208.0,0.00030411,2]
[344058146,1733256639739,-500.0,0.00030474,7]
[344058149,1733256639748,-947.36467538,0.00030474,7]
[344058150,1733256639757,-500.0,0.00030474,7]
[344058152,1733256639766,-500.0,0.00030496,7]
[344058154,1733256639775,-223.97,0.00030497,2]
[344058156,1733256639789,-250.0,0.00030497,2]
[344058158,1733256639798,-150.0,0.00030497,2]
[344058160,1733256639807,-532.0,0.00030497,2]
[344058162,1733256639817,-2376.0,0.00030497,2]
[344058164,1733256639827,-2171.0,0.00030497,2]
[344058166,1733256639837,-660.49677424,0.00030533,2]
[344058168,1733256639847,-177.8,0.0003054,7]
[344058170,1733256639856,-10439.30381027,0.00030601,2]
[344058172,1733256639868,-660.49677424,0.00030657,2]
[344058174,1733256639879,-660.49677424,0.00030782,2]
[344058177,1733256639889,-261.0,0.00030785,30]
[344058178,1733256639899,-500.0,0.00030785,7]
[344058180,1733256639909,-500.0,0.00030876,7]
[344058182,1733256639918,-500.0,0.00030899,7]
[344058185,1733256639928,-500.0,0.00030899,7]
[344058187,1733256639938,-660.49677424,0.00030906,2]
[344058189,1733256639947,-2354.86153277,0.00030906,2]
[344058191,1733256639960,-10439.30381028,0.00030958,2]
[344058193,1733256639970,-313.14,0.00030992,3]
[344058195,1733256639980,-270.41,0.00030992,10]
[344058197,1733256639991,-225.34,0.00030992,10]
[344058199,1733256640000,-187.79,0.00030992,10]
[344058201,1733256640010,-500.0,0.00030999,7]
[344058203,1733256640020,-500.0,0.00030999,7]
[344058204,1733256640030,-1006.48,0.00031,2]
[344058206,1733256640039,-237.08,0.00031,2]
[344058208,1733256640049,-187.25,0.00031,3]
[344058210,1733256640058,-227.57074368,0.00031,30]
[344058213,1733256640071,-961.20033077,0.00031,30]
[344058215,1733256640081,-500.0,0.00031,7]
[344058217,1733256640090,-542.91534274,0.00031,7]
[344058219,1733256640099,-500.0,0.00031,7]
[344058221,1733256640108,-500.0,0.00031,7]
[344058223,1733256640118,-500.0,0.00031,7]
[344058225,1733256640127,-336.23799359,0.00031,7]
[344058227,1733256640137,-108.25430914,0.00031,2]
[344058271,1733256646689,-156.0,0.0003,2]
[344058272,1733256646699,-156.0,0.00030411,2]
[344058273,1733256646713,-71.46922486,0.00031,2]
[344058274,1733256646724,-500.0,0.00031,7]
[344058275,1733256646734,-500.0,0.00031,7]
[344058276,1733256646744,-500.0,0.00031,7]
[344058278,1733256646754,-500.0,0.00031,7]
[344058280,1733256646763,-211.21799,0.00031001,7]
[344058281,1733256646773,-194.38103123,0.00031001,7]
[344058282,1733256646783,-500.0,0.00031001,7]
[344058283,1733256646794,-128.13175391,0.00031001,7]
[344058284,1733256646806,-371.86824609,0.00031001,7]
[344058285,1733256646815,-151.0,0.00031002,7]
[344058286,1733256646825,-151.0,0.00031002,7]
[344058287,1733256646835,-151.0,0.00031002,7]
[344058288,1733256646845,-151.0,0.00031002,7]
[344058289,1733256646855,-151.0,0.00031002,7]
[344058290,1733256646866,-151.0,0.00031002,7]
[344058291,1733256646876,-151.0,0.00031002,7]
[344058292,1733256646885,-151.0,0.00031002,7]
[344058293,1733256646895,-245.828348,0.00031002,7]
[344058294,1733256646904,-151.0,0.00031002,7]
[344058295,1733256646914,-151.0,0.00031002,7]
[344058296,1733256646924,-151.0,0.00031002,7]
[344058297,1733256646933,-151.0,0.00031002,7]
[344058298,1733256646942,-151.0,0.00031002,7]
[344058299,1733256646952,-151.0,0.00031002,7]
[344058300,1733256646963,-151.0,0.00031002,7]
[344058301,1733256646973,-151.0,0.00031002,7]
[344058302,1733256646983,-151.0,0.00031002,7]
[344058303,1733256646993,-151.0,0.00031002,7]
[344058304,1733256647003,-151.0,0.00031002,7]
[344058305,1733256647013,-592.560686,0.00031002,7]
[344058306,1733256647023,-592.560686,0.00031002,7]
[344058307,1733256647033,-592.560686,0.00031002,7]
[344058308,1733256647043,-592.560686,0.00031002,7]
[344058309,1733256647053,-592.560686,0.00031002,7]
[344058310,1733256647063,-592.560686,0.00031002,7]
[344058311,1733256647073,-592.560686,0.00031002,7]
[344058312,1733256647082,-592.560686,0.00031002,7]
[344058313,1733256647092,-592.560686,0.00031002,7]
[344058314,1733256647102,-592.560686,0.00031002,7]
[344058315,1733256647112,-592.560686,0.00031002,7]
[344058316,1733256647122,-592.560686,0.00031002,7]
[344058317,1733256647132,-592.560686,0.00031002,7]
[344058318,1733256647141,-592.560686,0.00031002,7]
[344058319,1733256647151,-592.560686,0.00031002,7]
[344058320,1733256647160,-592.560686,0.00031002,7]
[344058321,1733256647170,-592.560686,0.00031002,7]
[344058322,1733256647180,-592.560686,0.00031002,7]
[344058323,1733256647190,-592.560686,0.00031002,7]
[344058324,1733256647199,-592.560678,0.00031002,7]
[344058325,1733256647211,-151.0,0.00031002,7]
[344058326,1733256647221,-242.02011,0.00031002,7]
[344058327,1733256647241,-151.0,0.00031002,7]
[344058328,1733256647253,-151.0,0.00031002,7]
[344058329,1733256647263,-253.072352,0.00031002,7]
[344058330,1733256647273,-500.0,0.00031002,7]
[344058331,1733256647283,-231.80397202,0.00031003,7]
[344058332,1733256647292,-501.00253617,0.00031003,7]